[Event "Israeli Team-ch 2023"]
[Site "Petah Tikva"]
[Date "2023.05.12"]
[Round "11.21"]
[White "Aizenberg, Benny"]
[Black "Iakymov, Volodymyr"]
[Result "1/2-1/2"]
[ECO "C44"]
[WhiteElo "2348"]
[BlackElo "2378"]
[Annotator "TA"]
[PlyCount "112"]
[EventDate "2023.01.13"]
[EventCountry "ISR"]
[SourceTitle "playchess.com"]
[Source "ChessBase"]
[SourceQuality "1"]
[TimeControl "40/5400+30:1800+30"]

{[%evp 10,112,45,31,49,0,0,-2,-5,0,0,-27,-14,-16,-26,-38,-42,-43,-25,-16,-6,-8,-9,-19,-21,-17,0,0,0,-16,-8,-14,0,-7,0,0,0,0,0,0,0,-4,0,-18,-6,-37,-30,-35,0,-24,-14,-71,-59,-52,-54,-52,-53,-65,-56,-56,0,0,107,-33,-45,-57,-22,-81,-79,-111,-20,-33,-28,-59,-51,-82,-33,-41,-11,-19,0,0,0,-11,-16,-31,0,0,0,0,0,0,0,0,0,0,0,0,0,0,0,0,0,0,0]} 1. e4 {[%emt 0:00:02]} e5 {[%emt 0:00:17]} 2. Nf3 {[%emt 0:00:08]} Nc6 {[%emt 0:00:11]} 3. Bb5 {[%emt 0:00:04]} d6 {[%emt 0:00:38]} 4. c3 {[%emt 0:02:04]} Nf6 {[%emt 0:07:06]} 5. d4 {[%emt 0:01:16]} Bd7 {[%emt 0:01:00]} 6. Nbd2 {[%emt 0:05:52]} Be7 {[%emt 0:03:18] C44: Ponziani Opening and Scotch Gambit.} 7. dxe5 {[%emt 0:03:00]} ({Better is} 7. O-O $14) 7... Nxe5 $11 {[%emt 0:01:02]} 8. Bxd7+ {[%emt 0:01:02]} Qxd7 {[%emt 0:00:31]} 9. O-O $1 {[%emt 0:00:09]} O-O {[%emt 0:07:48] [#]} 10. Nd4 $146 {[%emt 0:06:10]} ({Predecessor:} 10. Qe2 Rfe8 11. Re1 Bf8 12. Nxe5 dxe5 13. Nf1 Nh5 14. Qd1 Qxd1 15. Rxd1 Rad8 16. Be3 {½-½ Kranzl,P (2245)-Knoll,H (2356) Niederoesterreich Landesliga 1112 2011 (7)}) 10... Rfe8 {[%emt 0:04:41]} 11. f4 {[%emt 0:08:11]} Nc6 {[%emt 0:09:05]} 12. Qc2 {[%emt 0:07:15]} Bf8 {[%emt 0:00:22][%cal Of6e4]} 13. Re1 {[%emt 0:01:26]} Nxd4 {[%emt 0:06:23]} 14. cxd4 {[%emt 0:00:04]} Qc6 {[%emt 0:00:13]} 15. Qxc6 {[%emt 0:16:40]} bxc6 {[%emt 0:00:03]} 16. e5 {[%emt 0:00:37]} Nd5 {[%emt 0:09:03]} 17. Nf3 {[%emt 0:01:43]} c5 {[%emt 0:01:22]} 18. dxc5 {[%emt 0:01:10]} dxe5 {[%emt 0:00:14]} 19. fxe5 {[%emt 0:00:04]} Bxc5+ {[%emt 0:00:21]} 20. Kf1 {[%emt 0:00:05]} Rab8 {[%emt 0:13:49]} 21. b3 {[%emt 0:00:43]} h6 {[%emt 0:15:01]} 22. Bd2 {[%emt 0:01:50]} Rbd8 {[%emt 0:02:38]} 23. Rac1 {[%emt 0:04:46]} Bb6 {[%emt 0:00:50]} 24. g3 {[%emt 0:02:05]} Ne7 {[%emt 0:05:59]} 25. Kg2 {[%emt 0:05:54]} Rd5 {[%emt 0:01:16]} 26. e6 {[%emt 0:01:43]} f6 {[%emt 0:01:06]} 27. Bf4 {[%emt 0:01:27]} c6 {[%emt 0:00:58]} 28. Bd2 {[%emt 0:01:20]} g5 {[%emt 0:01:03]} 29. h3 {[%emt 0:00:33]} (29. Bb4 $5 {[%cal Rb4e7]}) 29... h5 {[%emt 0:00:23]} 30. Bc3 {[%emt 0:04:04]} (30. Re4 $11 {keeps the balance.}) 30... Nf5 $17 {[%emt 0:01:10]} 31. Bxf6 {[%emt 0:06:49]} g4 {[%emt 0:00:09]} 32. hxg4 {[%emt 0:02:51]} hxg4 {[%emt 0:00:02]} 33. Rxc6 $1 {[%emt 0:00:40]} gxf3+ {[%emt 0:04:20]} 34. Kxf3 {[%emt 0:00:05]} Nd4+ {[%emt 0:01:30]} ({Black should play} 34... Ne7 $15 35. Bxe7 Rxe7) 35. Ke4 $11 {[%emt 0:01:44]} Rd7 {[%emt 0:01:07]} (35... Rdd8 $11 36. Rh1 (36. Rxb6 axb6 37. Bxd8 Nxe6 $11) 36... Nxe6 37. Rh8+ Kf7 38. Bxd8 Rxh8 39. Bxb6 axb6) 36. Bxd4 {[%emt 0:05:00]} (36. Rc8 $1 $16 {[%cal Rc8e8]} Bd8 37. e7 (37. Bxd4 Rxd4+ 38. Kxd4 Bf6+ {[%mdl 64] Discovered Attack} 39. Kc5 Rxc8+ 40. Kd6 Rd8+ 41. Kc7 Be7 $11)) 36... Rxd4+ $15 {[%emt 0:00:04]} 37. Ke5 {[%emt 0:00:04][%cal Oc6b6] [#] Rxb6! would be deadly.} Rd3 {[%emt 0:01:35]} 38. g4 {[%emt 0:01:27]} (38. Re4 $11 {remains equal.}) 38... Kg7 $17 {[%emt 0:00:38]} 39. b4 {[%emt 0:03:46]} Re7 {[%emt 0:01:03]} (39... Rd2 $17 40. Kf4 Rf8+ 41. Ke5 Bf2) 40. Re2 {[%emt 0:03:56] Dodges Bf2} Rd1 {[%emt 0:00:41] Hoping for ...Bc7+.} 41. Kf4 {[%emt 0:05:54]} Kf6 {[%emt 0:07:21]} 42. a4 {[%emt 0:01:45]} Bc7+ {[%emt 0:01:59]} (42... Rf1+ $17 43. Kg3 Bd4) 43. Kf3 $15 {[%emt 0:00:36][%cal Og4g5]} Rd8 {[%emt 0:07:01]} 44. a5 {[%emt 0:02:55]} Kg6 {[%emt 0:00:53]} 45. Re4 {[%emt 0:00:47]} Kf6 {[%emt 0:01:47]} 46. Ra6 {[%emt 0:01:30]} Be5 {[%emt 0:01:56]} 47. b5 {[%emt 0:01:33]} Rxe6 {[%emt 0:02:12]} 48. Rxa7 {[%emt 0:00:32] The position is equal.} Rd3+ {[%emt 0:00:40]} 49. Ke2 {[%emt 0:00:21]} (49. Re3 Rxe3+ 50. Kxe3 Bb8+ 51. Kd3 Bxa7 $19) 49... Red6 {[%emt 0:01:26]} 50. Rh7 {[%emt 0:03:07]} Rd2+ {[%emt 0:01:05]} 51. Kf3 {[%emt 0:00:20]} R6d3+ {[%emt 0:00:37]} 52. Re3 {[%emt 0:00:11] [#] Threatens to win with Rh6+.} Rd4 {[%emt 0:00:49] Strongly threatening ...Rf4+.} 53. Rh6+ {[%emt 0:04:09]} Kg7 {[%emt 0:00:09] aiming for ...Bf4.} 54. Re6 {[%emt 0:00:03]} Bd6 {[%emt 0:00:37]} 55. Re2 {[%emt 0:05:07]} R2d3+ {[%emt 0:01:01]} 56. R2e3 {[%emt 0:00:07] Black must now prevent Rxd3.} Rd2 {[%emt 0:00:14] Weighted Error Value: White=0.14 (very precise) /Black=0.15 (very precise)} 1/2-1/2

[Event "Israeli Team-ch 2023"]
[Site "Petah Tikva"]
[Date "2023.05.12"]
[Round "11.23"]
[White "Deutsch, Eyal"]
[Black "Linker, Mikhail"]
[Result "1/2-1/2"]
[ECO "D00"]
[WhiteElo "2297"]
[BlackElo "2297"]
[Annotator "TA"]
[PlyCount "107"]
[EventDate "2023.01.13"]
[EventCountry "ISR"]
[SourceTitle "playchess.com"]
[Source "ChessBase"]
[SourceQuality "1"]
[TimeControl "40/5400+30:1800+30"]

{[%evp 9,107,0,0,0,15,3,4,-4,8,2,9,1,-4,-11,0,-23,0,-8,-6,-10,0,0,0,0,0,-6,-9,-8,13,12,14,12,14,20,47,42,42,14,21,10,39,50,112,116,122,104,107,47,45,45,165,154,198,104,240,230,387,216,213,212,213,167,174,165,156,145,191,185,178,176,229,158,147,106,110,145,108,10,10,10,17,10,10,10,10,11,11,0,12,2,3,0,0,0,0,0,0,0,0,0]} 1. d4 {[%emt 0:00:03]} Nf6 {[%emt 0:00:17]} 2. Nc3 {[%emt 0:00:05]} d5 {[%emt 0:00:33]} 3. Bf4 {[%emt 0:00:06]} Bf5 {[%emt 0:00:51]} 4. Nb5 {[%emt 0:00:22]} Na6 {[%emt 0:00:29]} 5. e3 {[%emt 0:00:14]} c6 {[%emt 0:04:58]} 6. Nc3 {[%emt 0:00:05] D00: 1 d4 d5: Unusual lines.} Nc7 {[%emt 0:03:54]} (6... Qb6 $5 {[%cal Rb6b2]}) 7. Nf3 {[%emt 0:00:13]} e6 {[%emt 0:06:37]} 8. a3 {[%emt 0:00:10]} Be7 {[%emt 0:00:37] [#]} 9. Bd3 $146 {[%emt 0:00:08]} ({Predecessor:} 9. Be2 h6 10. O-O O-O 11. b4 Nce8 12. Na4 Nd6 13. Nc5 b6 14. Nd3 Nfe4 15. Nde5 {0-1 Alvarez Vega,W-Foronda,E (1533) BOL-ch Seniors 2023 (7)}) 9... O-O {[%emt 0:01:41]} 10. O-O {[%emt 0:01:10]} Nce8 {[%emt 0:10:25]} 11. Ne5 {[%emt 0:04:16]} Rc8 {[%emt 0:05:04]} 12. Ne2 {[%emt 0:01:02]} Nd6 {[%emt 0:02:58]} 13. Ng3 {[%emt 0:03:10]} Bxd3 {[%emt 0:01:12]} 14. cxd3 {[%emt 0:03:13]} c5 {[%emt 0:01:33]} 15. dxc5 {[%emt 0:07:42]} Rxc5 {[%emt 0:00:04]} 16. Qd2 {[%emt 0:00:53]} Qb6 {[%emt 0:03:12]} 17. Ne2 {[%emt 0:05:15]} Rfc8 {[%emt 0:08:30]} 18. Rfc1 {[%emt 0:04:58] Dodges Rc2} a5 {[%emt 0:02:06]} 19. h3 {[%emt 0:11:52]} h6 {[%emt 0:05:01]} 20. Rxc5 {[%emt 0:03:28]} Rxc5 {[%emt 0:00:55]} 21. Rc1 {[%emt 0:00:09]} a4 {[%emt 0:16:58]} 22. Rxc5 {[%emt 0:00:47]} Qxc5 {[%emt 0:00:04]} 23. Nc3 {[%emt 0:03:00]} b5 {[%emt 0:01:24]} 24. Na2 {[%emt 0:00:14]} Bf8 {[%emt 0:04:49]} 25. Qc3 {[%emt 0:03:09]} Nf5 {[%emt 0:08:46]} (25... Qxc3 $14 26. Nxc3 g5) 26. g4 $1 $16 {[%emt 0:03:55]} g5 {[%emt 0:03:25]} 27. Bh2 {[%emt 0:03:22]} Nh4 {[%emt 0:00:53][%cal Od5d4] [#]} 28. Qxc5 {[%emt 0:02:28]} (28. Bg3 $1 $16) 28... Bxc5 $14 {[%emt 0:00:01]} 29. Bg3 {[%emt 0:00:55]} Bd6 {[%emt 0:04:04]} (29... d4 $1 $14) 30. Nc6 $18 {[%emt 0:02:22]} Nf3+ {[%emt 0:01:00]} 31. Kf1 {[%emt 0:00:23]} ({Better is} 31. Kg2 $18 Ne1+ 32. Kf1 Bxg3 33. Kxe1) 31... e5 {[%emt 0:02:06]} (31... Bf8 $16 {was worth a try.}) 32. Nc3 {[%emt 0:00:45]} d4 $2 {[%emt 0:00:58]} (32... Ne8 33. Nxb5 (33. Nxd5 e4 $16) 33... f6) 33. exd4 {[%emt 0:00:43]} (33. Nxb5 $142 Bc5 34. Nxe5 Nd2+ 35. Ke2) 33... exd4 {[%emt 0:00:12]} 34. Nxb5 {[%emt 0:00:28]} ({Don't play} 34. Bxd6 $6 dxc3 35. Ne7+ (35. bxc3 Nd5 $16) 35... Kg7 36. bxc3 Ne8 37. Nf5+ Kf6 $16) 34... Bc5 {[%emt 0:00:58]} 35. Ne5 {[%emt 0:01:11]} Nd2+ {[%emt 0:00:13]} 36. Ke2 {[%emt 0:00:09]} Nb3 {[%emt 0:00:05]} 37. Kd1 {[%emt 0:02:52]} h5 {[%emt 0:00:31] [#]} (37... Kg7 $16 38. Kc2 Na1+ 39. Kc1 Nb3+ 40. Kc2 Na1+ 41. Kd1 Nb3) 38. gxh5 $1 {[%emt 0:00:18]} Nxh5 {[%emt 0:00:04]} 39. Nd7 {[%emt 0:00:33]} f5 {[%emt 0:00:45]} (39... Be7 {was necessary.} 40. Nb6 Nc5 41. Nxd4 Bf6) 40. Bb8 {[%emt 0:01:35]} Kf7 {[%emt 0:00:35]} 41. Nxc5 {[%emt 0:30:14]} Nxc5 $16 {[%emt 0:30:02][%mdl 4096] Endgame KBN-KNN} 42. Kc2 {[%emt 0:00:07]} Nb3 {[%emt 0:01:43]} 43. Nd6+ {[%emt 0:01:32]} ({White should play} 43. Be5 $16) 43... Ke6 $11 {[%emt 0:00:00] Hoping for ...Nf4. The position is equal.} 44. Nc4 {[%emt 0:00:00]} Nf6 {[%emt 0:00:00]} 45. Nd2 {[%emt 0:00:00]} Nxd2 {[%emt 0:00:00]} 46. Kxd2 {[%emt 0:00:00] KB-KN} Nd7 $1 {[%emt 0:00:00]} 47. Bc7 {[%emt 0:00:00]} f4 {[%emt 0:00:00]} 48. Ke2 {[%emt 0:00:00]} Nc5 {[%emt 0:03:57]} 49. Bd8 {[%emt 0:00:00]} Kf5 {[%emt 0:00:00]} 50. Bb6 {[%emt 0:00:00]} Nb3 {[%emt 0:00:00]} 51. Kf3 {[%emt 0:00:00]} Nd2+ {[%emt 0:00:00]} 52. Ke2 {[%emt 0:00:00]} Nb3 {[%emt 0:02:00]} 53. Kf3 Nd2+ 54. Ke2 {Black escapes into a draw.   Weighted Error Value: White=0.17 (very precise) /Black=0.20 (precise)} 1/2-1/2

[Event "Israeli Team-ch 2023"]
[Site "Petah Tikva"]
[Date "2023.05.12"]
[Round "11.26"]
[White "Parkhov, Yair"]
[Black "Mesropov, Konstantin"]
[Result "0-1"]
[ECO "D23"]
[WhiteElo "2467"]
[BlackElo "2437"]
[Annotator "TA"]
[PlyCount "82"]
[EventDate "2023.01.13"]
[EventCountry "ISR"]
[SourceTitle "playchess.com"]
[Source "ChessBase"]
[SourceQuality "1"]
[TimeControl "40/5400+30:1800+30"]

{[%evp 17,82,15,16,7,14,19,22,15,91,61,59,40,109,96,115,111,103,108,175,141,172,164,161,125,126,89,95,80,90,104,106,0,0,-7,0,0,0,0,0,0,0,0,-3,-1201,-1173,-1098,-1076,-29990,-29991,-29992,-1553,-772,-685,-685,-657,-608,-580,-572,-572,-711,-702,-5583,-5583,-5583,-5583,-1864,-1837]} 1. d4 {[%emt 0:00:01]} d5 {[%emt 0:00:16]} 2. c4 {[%emt 0:00:05]} dxc4 {[%emt 0:00:16]} 3. Nf3 {[%emt 0:00:15]} Nf6 {[%emt 0:00:22]} 4. Qa4+ {[%emt 0:05:22]} c6 {[%emt 0:03:13]} 5. Qxc4 {[%emt 0:00:05]} Bf5 {[%emt 0:00:30]} 6. g3 {[%emt 0:00:33]} e6 {[%emt 0:00:19]} 7. Bg2 {[%emt 0:00:07]} Nbd7 {[%emt 0:05:08]} 8. O-O {[%emt 0:01:56]} Be7 {[%emt 0:01:53]} 9. Qb3 {[%emt 0:00:52]} Qb6 {[%emt 0:03:00]} 10. Nbd2 {[%emt 0:00:05][%cal Bb1d2,Bd2c4,Bc4a5][%mdl 32] D23: Queen's Gambit Accepted: 3 Nf3 Nf6 sidelines.} Ne4 {[%emt 0:05:43]} 11. Nc4 {[%emt 0:02:11]} Qxb3 {[%emt 0:01:22]} 12. axb3 {[%emt 0:00:06] The position is equal.} h6 {[%emt 0:20:13]} (12... Nd6 $11 {remains equal.}) 13. Nfd2 {[%emt 0:10:50] [#]} Nd6 $146 {[%emt 0:14:44]} ({Predecessor:} 13... Nxd2 14. Bxd2 O-O 15. Na5 Bf6 16. e4 Bg6 17. e5 Be7 18. Nxb7 Bd3 19. Rfc1 Bb5 {1-0 Efremov,V (2217)-Nikulin,I (2041) Moscow op-A 16th 2020 (9)}) 14. Na5 {[%emt 0:13:10][%cal Oa5b7]} Rb8 {[%emt 0:00:30] [#]} (14... Nb5 $14) 15. Ndc4 $1 $16 {[%emt 0:00:30]} Nxc4 {[%emt 0:00:30]} 16. bxc4 {[%emt 0:00:30]} O-O {[%emt 0:00:30]} 17. e4 {[%emt 0:00:30]} Bh7 {[%emt 0:00:30]} (17... Bg6 $16) 18. Bf4 $18 {[%emt 0:00:30]} e5 {[%emt 0:00:30]} 19. dxe5 {[%emt 0:00:30]} (19. Bxe5 $6 Nxe5 20. dxe5 f6 $14) 19... Nc5 {[%emt 0:00:30][%cal Bd7c5,Bc5d3,Bd3f2][%mdl 32] [#]} 20. e6 $1 {[%emt 0:00:30][%mdl 512]} Rbe8 {[%emt 0:00:30]} (20... Ra8 21. exf7+) 21. exf7+ {[%emt 0:00:30]} Rxf7 {[%emt 0:00:30]} 22. f3 {[%emt 0:00:30]} Nd3 {[%emt 0:00:30][%csl LRb2,LRf4]} 23. Be3 {[%emt 0:00:30]} Bf6 {[%emt 0:00:30]} 24. Bxa7 {[%emt 0:00:30]} (24. Ra3 $16 Nxb2 25. Bxa7) 24... c5 $1 $11 {[%emt 0:00:30]} 25. Bh3 {[%emt 0:00:30]} Bd4+ {[%emt 0:00:30]} 26. Kh1 {[%emt 0:00:30]} Nf2+ {[%emt 0:00:30]} 27. Kg2 {[%emt 0:00:30]} Rxf3 {[%emt 0:00:30][%mdl 64] Decoy} 28. Bf5 {[%emt 0:00:30]} (28. Kxf3 Bxe4+ 29. Ke2 Bd3+ 30. Kf3 Rf8+) 28... Bxf5 {[%emt 0:00:30]} 29. exf5 {[%emt 0:00:30]} Rxf5 {[%emt 0:00:30] aiming for ...Re2.} 30. Nxb7 $2 {[%emt 0:00:30][%mdl 8192]} (30. Nb3 $11 Bxb2 31. Rae1 Rxe1 32. Rxe1) 30... Re2 $1 $19 {[%emt 0:00:30]} (30... Bxb2 $2 31. Nd6 (31. Rxf2 $2 Rxf2+ 32. Kxf2 Bxa1 $19) 31... Rff8 32. Nxe8 Bxa1 33. Rxa1 $18) 31. Rae1 {[%emt 0:00:30]} Rxb2 {[%emt 0:00:30]} 32. Re8+ {[%emt 0:00:30]} Kh7 {[%emt 0:00:30]} 33. Bxc5 {[%emt 0:00:30]} Ne4+ {[%emt 0:00:30]} (33... Ng4+ $142 34. Kh3 h5 35. Rh8+ Kxh8 36. Rh1 Nf2+ 37. Kg2 Nxh1+ 38. Kh3 Nf2+ 39. Kg2 Ng4+ {[%mdl 64] Discovered Attack} 40. Kh3 Rxh2#) 34. Kh3 {[%emt 0:00:30] Black is clearly winning.} Rh5+ {[%emt 0:00:30]} (34... Nxc5 35. Rxf5 Nxb7 36. Rb5 $11) ({Inferior is} 34... Rxc5 35. Rxe4 Rxc4 36. Nd6 $11) 35. Kg4 {[%emt 0:00:30]} Rg5+ {[%emt 0:00:30]} ({Weaker is} 35... Bxc5 36. Kxh5 Nf6+ 37. Rxf6 Rxh2+ 38. Kg4 h5+ 39. Kg5 gxf6+ 40. Kxf6 $14) ({Stronger than} 35... Rxc5 36. Nxc5 Nxc5 37. Rd8 $17) 36. Kh3 {[%emt 0:00:30]} Nxc5 {[%emt 0:00:30]} 37. Nxc5 {[%emt 0:00:30]} Bxc5 {[%emt 0:00:30]} 38. Rc8 {[%emt 0:00:30]} Rc2 {[%emt 0:00:30]} 39. Re1 {[%emt 0:00:30]} Rh5+ {[%emt 0:00:30][%mdl 64] Skewer} 40. Kg4 {[%emt 0:00:30]} Rxc4+ {[%emt 0:00:30]} 41. Kf3 {[%emt 0:30:30]} Rxh2 {[%emt 0:30:30] What a bad dream for White.   Weighted Error Value: White=0.79/Black=0.28 (precise)} 0-1

[Event "Israeli Team-ch 2023"]
[Site "Petah Tikva"]
[Date "2023.05.12"]
[Round "11.27"]
[White "Ben Ari, Yannay"]
[Black "Gorodetzky, Matan"]
[Result "1/2-1/2"]
[ECO "E01"]
[WhiteElo "2406"]
[BlackElo "2333"]
[Annotator "TA"]
[PlyCount "93"]
[EventDate "2023.01.13"]
[EventCountry "ISR"]
[SourceTitle "playchess.com"]
[Source "ChessBase"]
[SourceQuality "1"]
[TimeControl "40/5400+30:1800+30"]

{[%evp 9,93,20,27,35,15,19,43,29,53,51,47,22,27,33,24,18,12,10,14,0,28,24,43,28,120,118,123,100,95,86,122,118,140,120,199,198,205,200,183,172,200,183,269,270,288,290,427,428,432,419,501,431,423,406,367,382,394,285,274,216,212,94,118,46,55,0,100,91,177,0,0,0,0,0,0,0,0,0,0,0,0,0,0,0,0,0]} 1. d4 {[%emt 0:03:13]} d5 {[%emt 0:00:08]} 2. c4 {[%emt 0:07:37]} e6 {[%emt 0:00:32]} 3. Nf3 {[%emt 0:00:08]} Nf6 {[%emt 0:00:06]} 4. g3 {[%emt 0:00:12]} c5 {[%emt 0:00:12]} 5. Bg2 {[%emt 0:00:58]} cxd4 {[%emt 0:01:30]} 6. O-O {[%emt 0:04:49] E01: Catalan: Early deviations.} Bc5 {[%emt 0:00:48]} 7. Nxd4 {[%emt 0:04:24]} O-O {[%emt 0:00:28]} 8. cxd5 {[%emt 0:07:41] White is slightly better.} (8. Nb3 $5 {[%cal Rb3c5]} Bb6 9. Nc3 $14) 8... exd5 {[%emt 0:00:11]} 9. Nc3 {[%emt 0:15:20]} Nc6 {[%emt 0:00:24]} 10. Nxc6 {[%emt 0:00:06]} bxc6 {[%emt 0:00:04]} 11. Na4 {[%emt 0:00:13]} Bb6 {[%emt 0:00:29]} 12. Qc2 {[%emt 0:00:10]} Ba6 {[%emt 0:00:20]} 13. Re1 {[%emt 0:03:46]} Re8 {[%emt 0:00:46] [#]} 14. b3 $146 {[%emt 0:06:11][%cal Oa4b6]} ({Predecessor:} 14. Bf3 Rc8 15. b3 Ne4 16. Nxb6 axb6 17. Bb2 Qe7 18. Rad1 Qe6 19. Bg2 Qf5 20. f3 {0-1 Sarana,A (2662)-Bacallao Alonso,Y (2590) Santiago de Compostela Bicapawn GP B2 blitz 2022 (5)}) 14... Ng4 {[%emt 0:10:10]} 15. Nxb6 {[%emt 0:01:35]} Qxb6 {[%emt 0:00:49]} 16. e3 $1 {[%emt 0:02:02]} Re6 {[%emt 0:03:52]} (16... d4 $1 $11 {remains equal.}) 17. Bb2 $16 Rae8 {[%emt 0:00:30][%cal Od5d4]} 18. Qc3 {[%csl Gb2][%cal Rc3g7] [#]} f6 {[%emt 0:00:30]} 19. Rad1 {[%cal Ba1d1,Bd1d4,Bd4a4][%mdl 32]} h5 {[%emt 0:00:30]} 20. Rd4 {[%emt 0:23:33]} Bc8 {[%emt 0:00:30]} 21. Ba3 {[%emt 0:00:30][%cal Bb2a3,Ba3c5,Bc5d4][%mdl 32]} Re5 {[%emt 0:00:30]} (21... Ne5 $16 {was worth a try.} 22. Rc1 Ng4) 22. h3 {[%emt 0:00:30]} Nh6 {[%emt 0:00:30]} 23. Ra4 {[%emt 0:00:30]} a6 {[%emt 0:00:30]} 24. Bc5 {[%emt 0:00:30]} Qc7 {[%emt 0:00:30]} 25. Bd4 $36 {[%emt 0:00:30][%mdl 2048] White is on the roll. A strong pair of Bishops.} Re4 {[%emt 0:00:30]} (25... Rg5 $142 26. h4 Rf5) 26. Rc1 $18 {[%emt 0:00:30]} Qf7 {[%emt 0:00:30]} 27. Qxc6 {[%emt 0:00:30]} h4 {[%emt 0:00:30]} (27... Bb7 {keeps fighting.}) 28. Bxe4 {[%emt 0:00:30]} dxe4 {[%emt 0:00:30]} 29. g4 {[%emt 0:00:30]} ({Not} 29. gxh4 Bxh3 30. Qc4 (30. Qxa6 $2 {gets mated.} Qg6+ 31. Kh2 Qg2#) 30... Be6 31. Qxa6 Nf5 $18) 29... Qg6 {[%emt 0:00:30]} 30. Qd5+ {[%emt 0:00:30]} Kh7 {[%emt 0:00:30][%cal Oh6g4]} 31. Qh5 {[%emt 0:00:30]} Qxh5 {[%emt 0:00:30]} 32. gxh5 {[%emt 0:00:30]} Bxh3 {[%emt 0:00:30]} 33. Rc7 {[%emt 0:00:30]} Re6 {[%emt 0:00:30]} 34. Rb4 {[%emt 0:00:30] a4 would be deadly.} Nf5 {[%emt 0:00:30]} 35. Rbb7 {[%emt 0:00:30]} (35. Rbc4 $18) 35... Kh6 {[%emt 0:00:30]} 36. Kh2 {[%emt 0:00:30]} (36. a4 $16) 36... Bg4 $14 {[%emt 0:00:30]} 37. b4 {[%emt 0:00:30]} (37. Bc3 $14) 37... Bxh5 {[%emt 0:00:30]} (37... Nxd4 $1 $11 38. exd4 e3 39. fxe3 (39. Rxg7 $2 {loses.} e2 $19) 39... Rxe3 40. Rxg7 f5 41. Rg6+ Kxh5 42. Rxa6 Kg5) 38. Bc5 {[%emt 0:00:30] White is more active.} Kg5 {[%emt 0:00:30]} (38... Re8 $16) 39. Rxg7+ $2 {[%emt 0:00:30]} (39. a4 $18) 39... Nxg7 $11 {[%emt 0:00:30] The position is equal.} 40. Rxg7+ $18 {[%emt 0:00:30][%mdl 4096] Endgame KRB-KRB} Kf5 {[%emt 0:00:30]} 41. Kh3 {[%emt 0:30:30]} Bf3 {[%emt 0:30:30]} 42. Rh7 {[%emt 0:00:30]} Re8 {[%emt 0:00:30]} 43. Rg7 {[%emt 0:00:30]} Rd8 {[%emt 0:00:30] [#] Hoping for ...Rd1.} 44. Bd4 {[%emt 0:00:30]} Rc8 {[%emt 0:00:30]} 45. Bc5 {[%emt 0:00:30]} Rd8 {[%emt 0:00:30] Strongly threatening ...Rd1.} 46. Bd4 {[%emt 0:00:30]} Rc8 {[%emt 0:00:30] White must now prevent ...Rc1.} 47. Bc5 {[%emt 0:00:30] Black escapes into a draw.   Weighted Error Value: White=0.23 (precise) /Black=0.24 (precise)} 1/2-1/2